Workbook

Sheet Easy_Division
B2: Sage & Scribe
C7: =1 -> 1 | D7: of | E7: =C8*G8 -> 4365 | F7: =5*ROUND(RAND()*(19-1)+1,0) -> 25 | K7: =1 -> 1 | L7: of | M7: =K8*O8 -> 1520 | N7: =5*ROUND(RAND()*(19-1)+1,0) -> 50
C8: =ROUND(RAND()*(10-2)+2,0) -> 9 | G8: =ROUND(RAND()*(499-109)+109,0) -> 485 | K8: =ROUND(RAND()*(10-2)+2,0) -> 8 | O8: =ROUND(RAND()*(199-119)+119,0) -> 190
D9: =C8 -> 9 | E9: =E7 -> 4365 | L9: =K8 -> 8 | M9: =M7 -> 1520
C11: 1 | D11: of | E11: =C11*C12*ROUND(RAND()*(153-110)+110,0) -> 1112 | F11: =5*ROUND(RAND()*(19-1)+1,0) -> 15 | K11: 1 | L11: of | M11: =K11*K12*ROUND(RAND()*(930-193)+193,0) -> 3052 | N11: =5*ROUND(RAND()*(19-1)+1,0) -> 80
C12: =ROUND(RAND()*(10-2)+2,0) -> 8 | G12: =E11*C11/C12 -> 139 | K12: =ROUND(RAND()*(10-2)+2,0) -> 4 | O12: =M11*K11/K12 -> 763
D13: =C12 -> 8 | E13: =E11 -> 1112 | L13: =K12 -> 4 | M13: =M11 -> 3052

Sheet Decimal_Division
B2: Sage & Scribe
C7: =1 -> 1 | D7: of | E7: =C8*G8 -> 2144.8 | F7: =5*ROUND(RAND()*(19-1)+1,0) -> 50 | K7: =1 -> 1 | L7: of | M7: =K8*O8 -> 4032 | N7: =5*ROUND(RAND()*(19-1)+1,0) -> 80
C8: =ROUND(RAND()*(10-2)+2,0) -> 7 | G8: =ROUND(RAND()*(999-9)+9,1) -> 306.4 | K8: =ROUND(RAND()*(10-2)+2,0) -> 7 | O8: =ROUND(RAND()*(999-9)+9,1) -> 576
D9: =C8 -> 7 | E9: =E7 -> 2144.8 | L9: =K8 -> 7 | M9: =M7 -> 4032
C11: 1 | D11: of | E11: =C12*G12 -> 560.84 | F11: =5*ROUND(RAND()*(19-1)+1,0) -> 80 | K11: 1 | L11: of | M11: =K12*O12 -> 483.06 | N11: =5*ROUND(RAND()*(19-1)+1,0) -> 40
C12: =ROUND(RAND()*(10-2)+2,0) -> 7 | G12: =ROUND(RAND()*(99-9)+9,2) -> 80.12 | K12: =ROUND(RAND()*(10-2)+2,0) -> 6 | O12: =ROUND(RAND()*(99-9)+9,2) -> 80.51
D13: =C12 -> 7 | E13: =E11 -> 560.84 | L13: =K12 -> 6 | M13: =M11 -> 483.06

Sheet Division_by_10_100_100
B2: Sage & Scribe
B7: =G8*E7 -> 10600 | D7: ÷ | E7: =POWER(10,ROUND(RAND()*(3-1)+1,0)) -> 100 | F7: =5*ROUND(RAND()*(19-1)+1,0) -> 90 | I7: =O8*M7 -> 149000 | L7: ÷ | M7: =POWER(10,ROUND(RAND()*(3-1)+1,0)) -> 1000 | N7: =5*ROUND(RAND()*(19-1)+1,0) -> 10
G8: =ROUND(RAND()*(199-19)+19,0) -> 106 | O8: =ROUND(RAND()*(199-19)+19,0) -> 149
B11: =E11*G12 -> 1620 | D11: ÷ | E11: =POWER(10,ROUND(RAND()*(3-1)+1,0)) -> 10 | F11: =5*ROUND(RAND()*(19-1)+1,0) -> 85 | I11: =O12*M11 -> 19600 | L11: ÷ | M11: =POWER(10,ROUND(RAND()*(3-1)+1,0)) -> 100 | N11: =5*ROUND(RAND()*(19-1)+1,0) -> 10
G12: =ROUND(RAND()*(199-19)+19,0) -> 162 | O12: =ROUND(RAND()*(199-19)+19,0) -> 196

Sheet DecimalDivision_by_10_100_100
B2: Sage & Scribe
B7: =G8*E7 -> 12638 | D7: ÷ | E7: =POWER(10,ROUND(RAND()*(3-1)+1,0)) -> 100 | F7: =5*ROUND(RAND()*(19-1)+1,0) -> 70 | I7: =O8*M7 -> 21670 | L7: ÷ | M7: =POWER(10,ROUND(RAND()*(3-1)+1,0)) -> 1000 | N7: =5*ROUND(RAND()*(19-1)+1,0) -> 80
G8: =ROUND(RAND()*(199-19)+19,2) -> 126.38 | O8: =ROUND(RAND()*(199-19)+19,2) -> 21.67
B11: =E11*G12 -> 6031 | D11: ÷ | E11: =POWER(10,ROUND(RAND()*(3-1)+1,0)) -> 100 | F11: =5*ROUND(RAND()*(19-1)+1,0) -> 60 | I11: =O12*M11 -> 2019 | L11: ÷ | M11: =POWER(10,ROUND(RAND()*(3-1)+1,0)) -> 100 | N11: =5*ROUND(RAND()*(19-1)+1,0) -> 30
G12: =ROUND(RAND()*(199-19)+19,2) -> 60.31 | O12: =ROUND(RAND()*(199-19)+19,2) -> 20.19

Sheet Division_by_20_300
B2: Sage & Scribe
B7: =G8*E7 -> 26400 | D7: ÷ | E7: =ROUND(RAND()*(9-1)+1,0)*POWER(10,ROUND(RAND()*(2-1)+1,0)) -> 400 | F7: =5*ROUND(RAND()*(19-1)+1,0) -> 90 | I7: =O8*M7 -> 950 | L7: ÷ | M7: =ROUND(RAND()*(9-1)+1,0)*POWER(10,ROUND(RAND()*(2-1)+1,0)) -> 50 | N7: =5*ROUND(RAND()*(19-1)+1,0) -> 15
G8: =ROUND(RAND()*(99-11)+1,0) -> 66 | O8: =ROUND(RAND()*(99-11)+1,0) -> 19
B11: =E11*G12 -> 480 | D11: ÷ | E11: =ROUND(RAND()*(9-1)+1,0)*POWER(10,ROUND(RAND()*(2-1)+1,0)) -> 10 | F11: =5*ROUND(RAND()*(19-1)+1,0) -> 50 | I11: =O12*M11 -> 11600 | L11: ÷ | M11: =ROUND(RAND()*(9-1)+1,0)*POWER(10,ROUND(RAND()*(2-1)+1,0)) -> 200 | N11: =5*ROUND(RAND()*(19-1)+1,0) -> 45
G12: =ROUND(RAND()*(99-11)+11,0) -> 48 | O12: =ROUND(RAND()*(99-11)+1,0) -> 58

Sheet Decimal_Division_by_20_300
B2: Sage & Scribe
B7: =G8*E7 -> 7112 | D7: ÷ | E7: =ROUND(RAND()*(9-1)+1,0)*POWER(10,ROUND(RAND()*(2-1)+1,0)) -> 80 | F7: =5*ROUND(RAND()*(19-1)+1,0) -> 10 | I7: =O8*M7 -> 1616 | L7: ÷ | M7: =ROUND(RAND()*(9-1)+1,0)*POWER(10,ROUND(RAND()*(2-1)+1,0)) -> 40 | N7: =5*ROUND(RAND()*(19-1)+1,0) -> 30
G8: =ROUND(RAND()*(99-11)+1,1) -> 88.9 | O8: =ROUND(RAND()*(99-11)+1,1) -> 40.4
B11: =E11*G12 -> 1213.4 | D11: ÷ | E11: =ROUND(RAND()*(9-1)+1,0)*POWER(10,ROUND(RAND()*(2-1)+1,0)) -> 20 | F11: =5*ROUND(RAND()*(19-1)+1,0) -> 90 | I11: =O12*M11 -> 463.2 | L11: ÷ | M11: =ROUND(RAND()*(9-1)+1,0)*POWER(10,ROUND(RAND()*(2-1)+1,0)) -> 80 | N11: =5*ROUND(RAND()*(19-1)+1,0) -> 70
G12: =ROUND(RAND()*(99-11)+11,2) -> 60.67 | O12: =ROUND(RAND()*(99-11)+1,2) -> 5.79
